bitfinex-derivatives/quotes_SOLF0:USTF0_20250730
["timestamp","ask_amount","ask_price","bid_price","bid_amount"]
[1753903988727,5.7552,173.77,173.7,3.33]
[1753903988931,3.26,173.78,173.7,3.33]
[1753903989932,3.26,173.75,173.67,3.33]
[1753903990533,3.26,173.72,173.67,3.33]
[1753903990836,11.507,173.82,173.67,5.758]
[1753903990837,3.26,173.76,173.67,5.758]
[1753903991132,11.507,173.82,173.64,11.36392398]
[1753903991133,11.36392398,173.75,173.68,3.33]
[1753903991332,11.36392398,173.75,173.64,11.36392398]
[1753903991333,5.7571,173.71,173.66,3.33]
[1753903991539,3.26,173.72,173.65,3.33]
[1753903991928,3.26,173.71,173.64,3.33]
[1753903992334,3.26,173.71,173.62,116.37]
[1753903992534,11.36392398,173.75,173.63,3.33]
[1753903992731,3.26,173.74,173.63,3.33]
[1753903992931,5.7568,173.72,173.66,5.7582]
[1753903993138,3.26,173.74,173.67,3.33]
[1753903993646,5.7563,173.73,173.69,3.33]
[1753903993847,9.0163,173.73,173.7,3.33]
[1753903994346,3.26,173.76,173.69,3.33]
[1753903994839,3.26,173.74,173.7,3.33]
[1753903995047,3.26,173.74,173.68,3.33]
[1753903995236,9.015,173.77,173.68,3.33]
[1753903995438,3.26,173.83,173.7,3.33]
[1753903995640,3.26,173.83,173.71,3.33]
[1753903995838,3.26,173.83,173.73,3.33]
[1753903996131,11.36392398,173.81,173.73,3.33]
[1753903996333,3.26,173.77,173.7,113.02]
[1753903996750,3.26,173.77,173.71,3.33]
[1753903996952,3.26,173.77,173.73,3.33]
[1753903997237,3.26,173.77,173.74,3.33]
[1753903997441,5.7551,173.77,173.71,9.0869]
[1753903997638,3.26,173.77,173.71,3.33]
[1753903998035,5.7556,173.75,173.71,3.33]
[1753903998234,5.7556,173.75,173.73,3.33]
[1753903998435,3.26,173.77,173.71,3.33]
[1753903998639,135.36392398,173.88,173.71,3.33]
[1753903998640,3.26,173.8,173.71,3.33]
[1753903999442,3.26,173.83,173.71,3.33]
[1753903999747,3.26,173.86,173.78,3.33]
[1753903999946,11.36392398,173.86,173.78,3.33]
[1753904000249,5.7541,173.8,173.78,3.33]
[1753904000447,11.36392398,173.86,173.73,11.36392398]
[1753904000641,3.26,173.85,173.74,3.33]
[1753904001044,3.26,173.85,173.77,3.33]
[1753904001438,5.7531,173.83,173.77,9.0846]
[1753904001645,3.26,173.88,173.78,3.33]
[1753904002848,3.26,173.88,173.8,3.33]
[1753904003049,11.36392398,173.92,173.8,3.33]
[1753904003349,8.18965381,173.91,173.8,3.33]
[1753904003546,8.18965381,173.91,173.79,11.36392398]
[1753904003547,8.18965381,173.91,173.83,3.33]
[1753904003947,4.92965381,173.91,173.83,3.33]
[1753904004142,3.26,173.92,173.83,3.33]
[1753904005247,3.26,173.92,173.85,3.33]
[1753904005546,3.26,173.95,173.85,3.33]
[1753904005743,3.26,173.99,173.88,3.33]
[1753904006055,3.26,173.99,173.91,3.33]
[1753904006545,3.26,173.99,173.82,386.8]
[1753904006546,3.26,174.02,173.94,3.33]
[1753904007049,112.94,174.06,173.88,112.94]
[1753904007050,3.26,174.06,173.97,3.33]
[1753904007844,4.59672191,174.05,173.97,3.33]
[1753904008249,3.26,174.04,173.97,3.33]
[1753904008448,5.7469,174.02,173.97,3.33]
[1753904008840,3.26,174.04,173.97,3.33]
[1753904009147,5.7469,174.02,173.97,3.33]
[1753904009551,5.7469,174.02,173.96,11.36392398]
[1753904009747,5.7469,174.02,174.0,3.15]
[1753904009942,398.16392398,174.1,173.96,11.36392398]
[1753904010143,398.16392398,174.1,173.95,3.15]
[1753904010144,3.33,174.06,173.95,3.15]
[1753904010549,3.33,174.06,173.97,3.15]
[1753904011347,3.33,173.99,173.92,3.15]
[1753904012655,11.36392398,173.97,173.92,3.15]
[1753904012850,5.7496,173.94,173.92,3.15]
[1753904013054,5.7496,173.94,173.9,3.15]
[1753904013256,11.36392398,173.97,173.9,3.15]
[1753904013554,5.7493,173.94,173.91,3.15]
[1753904013754,11.36392398,173.97,173.93,3.15]
[1753904013955,14.69392398,174.0,173.9,3.15]
[1753904014145,3.33,173.99,173.9,3.15]
[1753904014744,11.36392398,174.03,173.91,3.15]
[1753904014954,3.33,174.01,173.91,11.36392398]
[1753904015158,3.33,174.01,173.92,3.15]
[1753904015456,3.33,174.01,173.94,3.15]
[1753904015951,3.33,174.01,173.95,3.15]
[1753904016143,3.33,174.04,173.95,3.15]
[1753904016346,5.7475,174.0,173.95,3.15]
[1753904016551,3.33,174.01,173.95,3.15]
[1753904016945,5.7481,173.98,173.91,11.36392398]
[1753904017149,5.7481,173.98,173.96,3.15]
[1753904017349,11.36392398,174.03,173.96,3.15]
[1753904017656,3.33,173.98,173.96,3.15]
[1753904018154,3.33,174.02,173.96,3.15]
[1753904018354,3.33,174.02,173.92,3.15]
[1753904018549,3.33,174.05,173.95,3.15]
[1753904019061,3.33,174.05,173.96,3.15]
[1753904019290,3.33,174.03,173.96,3.15]
[1753904019649,5.7472,174.01,173.96,3.15]
[1753904020147,3.33,174.03,173.96,3.15]
[1753904020549,3.33,174.06,173.96,3.15]
[1753904020750,5.7452,174.07,174.01,3.15]
[1753904021053,3.33,174.09,174.01,3.15]
[1753904021854,3.33,174.09,174.03,3.15]
[1753904022351,5.7448,174.08,174.03,3.15]
[1753904022551,3.33,174.1,174.0,11.36392398]
[1753904022853,3.33,174.13,174.05,3.15]
[1753904023051,5.7439,174.11,174.05,3.15]
[1753904023251,3.33,174.13,174.05,3.15]
[1753904023450,5.7441,174.1,174.0,11.36392398]
[1753904023656,3.33,174.1,174.01,3.15]
[1753904024152,3.33,174.1,174.04,3.15]
[1753904024661,3.33,174.13,174.05,3.15]
[1753904025152,9.0731,174.13,174.07,3.15]
[1753904025356,3.33,174.13,174.07,3.15]
[1753904025556,3.33,174.19,174.09,3.15]
[1753904025857,3.33,174.16,174.09,3.15]
[1753904026257,5.7423,174.15,174.09,3.15]
[1753904026659,3.33,174.15,174.09,3.15]
[1753904026958,11.36392398,174.17,174.09,3.15]
[1753904027259,5.7426,174.15,174.09,3.15]
[1753904027958,3.33,174.13,174.07,3.15]
[1753904028547,3.33,174.13,174.09,3.15]
[1753904028753,3.33,174.13,174.1,3.15]
[1753904029152,3.33,174.13,174.05,6.15961556]
[1753904029450,9.48961556,174.16,174.06,3.15]
[1753904029655,9.48961556,174.16,174.1,3.15]
[1753904029855,6.15961556,174.14,174.08,3.15]
[1753904030157,3.33,174.12,174.08,3.15]
[1753904030354,3.33,174.11,174.05,3.15]
[1753904031155,3.33,174.07,173.99,6.15961556]
[1753904031356,11.90371556,174.1,174.05,3.15]
[1753904031563,3.33,174.09,174.06,3.15]
[1753904031762,6.15961556,174.12,174.03,6.15961556]
[1753904031763,3.33,174.12,174.03,6.15961556]
[1753904031956,3.33,174.12,174.07,3.15]
[1753904032255,3.33,174.14,174.07,3.15]
[1753904032462,5.7433,174.12,174.07,3.15]
[1753904032861,5.7433,174.12,174.05,6.15961556]
[1753904033063,5.7433,174.12,174.09,3.15]
[1753904033064,3.33,174.12,174.09,3.15]
[1753904033263,3.33,174.12,174.1,3.15]
[1753904033557,3.33,174.17,174.1,3.15]
[1753904034056,3.33,174.13,174.06,3.15]
[1753904034258,3.33,174.09,174.07,3.15]
[1753904034764,3.33,174.07,174.05,3.15]
[1753904035057,3.33,174.07,173.99,6.15961556]
[1753904035255,9.0759,174.05,174.03,3.15]
[1753904035454,3.33,174.05,174.03,3.15]
[1753904035660,3.33,174.07,174.03,3.15]
[1753904035966,3.33,174.05,174.03,3.15]
[1753904036564,5.746,174.04,174.03,3.15]
[1753904036764,5.746,174.04,174.01,3.15]
[1753904037061,9.0758,174.05,174.02,3.15]
[1753904037268,5.7458,174.05,174.02,3.15]
[1753904037469,6.15961556,174.08,174.02,3.15]
[1753904037763,3.33,174.03,173.96,3.15]
[1753904038155,3.33,173.99,173.96,3.15]
[1753904039563,3.03,173.98,173.96,3.15]
[1753904040269,10.31499473,174.01,173.89,3.08]
[1753904040667,5.7476,173.99,173.93,5.7494]
[1753904040864,5.7476,173.99,173.94,3.08]
[1753904041264,3.03,174.04,173.95,3.08]
[1753904041657,5.7433,174.13,174.07,5.7447]
[1753904041861,3.03,174.2,174.07,3.08]
[1753904042266,10.31499473,174.18,174.07,3.08]
[1753904042465,3.03,174.17,174.07,3.08]
[1753904042769,3.03,174.14,174.07,3.08]
[1753904043357,3.03,174.19,174.07,10.31499473]
[1753904043567,10.31499473,174.25,174.11,3.08]
[1753904043863,3.03,174.24,174.14,3.08]
[1753904044269,3.03,174.21,174.14,3.08]
[1753904044463,5.7409,174.2,174.14,3.08]
[1753904044771,3.03,174.21,174.14,3.08]
[1753904045659,3.03,174.21,174.12,3.08]
[1753904046065,5.7414,174.18,174.12,8.8232]
[1753904046261,5.7414,174.18,174.12,5.7432]
[1753904046462,3.03,174.21,174.09,3.08]
[1753904046770,5.7419,174.17,174.12,3.08]
[1753904046966,3.03,174.2,174.12,3.08]
[1753904047170,5.7418,174.17,174.12,3.08]
[1753904047467,3.03,174.2,174.12,3.08]
[1753904048269,5.7413,174.19,174.12,5.7433]
[1753904048467,3.03,174.2,174.13,3.08]
[1753904048873,3.03,174.2,174.08,386.22]
[1753904048874,3.03,174.23,174.15,3.08]
[1753904049967,3.03,174.23,174.17,5.7416]
[1753904050371,10.31499473,174.27,174.15,3.08]
[1753904050565,5.7391,174.25,174.15,3.08]
[1753904050873,3.03,174.26,174.15,3.08]
[1753904051071,5.7391,174.25,174.18,5.7413]
[1753904051275,5.7391,174.25,174.19,3.08]
[1753904052076,3.03,174.26,174.19,3.08]
[1753904052374,396.51499473,174.3,174.19,3.08]
[1753904052375,3.03,174.29,174.19,3.08]
[1753904052674,3.03,174.27,174.19,3.08]
[1753904052876,3.03,174.27,174.21,5.7403]
[1753904053072,3.03,174.32,174.21,3.08]
[1753904053576,3.03,174.32,174.23,5.7394]
[1753904053780,5.7375,174.3,174.24,3.08]
[1753904053974,3.03,174.3,174.25,5.7389]
[1753904054278,8.768,174.29,174.21,3.08]
[1753904054469,3.03,174.29,174.23,5.7397]
[1753904054672,3.03,174.29,174.21,3.08]
[1753904054673,112.38,174.35,174.21,3.08]
[1753904054877,3.03,174.32,174.21,3.08]
[1753904055080,3.03,174.32,174.24,5.739]
[1753904055292,5.7371,174.31,174.25,3.08]
[1753904055480,5.7371,174.31,174.25,8.8187]
[1753904055779,3.03,174.32,174.25,3.08]
[1753904056381,8.7661,174.34,174.24,3.08]
[1753904056582,3.03,174.34,174.27,3.08]
[1753904056881,3.03,174.36,174.27,3.08]
[1753904057474,3.03,174.36,174.27,10.31499473]
[1753904057678,3.03,174.36,174.28,3.08]
[1753904058082,3.03,174.38,174.28,3.08]
[1753904058378,3.03,174.38,174.26,10.31499473]
[1753904058582,3.03,174.38,174.27,3.08]
[1753904058881,3.03,174.33,174.27,3.08]
[1753904059388,10.31499473,174.44,174.33,3.08]
[1753904059577,3.03,174.43,174.33,3.08]
[1753904059773,5.7346,174.39,174.33,3.08]
[1753904060084,3.03,174.39,174.33,3.08]
[1753904060477,3.03,174.39,174.35,3.08]
[1753904060776,3.03,174.39,174.36,3.08]
[1753904061180,3.03,174.43,174.3,3.08]
[1753904061483,3.03,174.43,174.33,3.08]
[1753904061676,3.03,174.42,174.34,3.08]
[1753904062778,8.7644,174.39,174.33,5.7363]
[1753904062986,8.7644,174.39,174.36,3.08]
[1753904063282,3.03,174.39,174.36,3.08]
[1753904063674,3.03,174.39,174.37,3.08]
[1753904064080,3.03,174.39,174.35,3.08]
[1753904064380,10.31499473,174.44,174.32,10.31499473]
[1753904064381,3.03,174.43,174.33,3.08]
[1753904064781,5.7343,174.4,174.34,5.7358]
[1753904065277,5.7335,174.42,174.36,8.8153]
[1753904065484,3.03,174.43,174.36,3.08]
[1753904065982,3.03,174.46,174.36,3.08]
[1753904066182,3.03,174.46,174.24,10.31499473]
[1753904066183,3.03,174.46,174.39,3.08]
[1753904067183,3.03,174.46,174.36,3.08]
[1753904067383,3.03,174.43,174.36,3.08]
[1753904067586,8.764,174.41,174.37,3.08]
[1753904067780,3.03,174.47,174.34,3.08]
[1753904067979,3.03,174.46,174.34,3.08]
[1753904068184,3.03,174.46,174.33,10.31499473]
[1753904068185,10.31499473,174.47,174.33,10.31499473]
[1753904068486,3.03,174.46,174.34,3.08]
[1753904068987,3.03,174.46,174.36,10.31499473]
[1753904069284,3.1,174.44,174.37,3.01]
[1753904069686,5.7343,174.4,174.38,3.01]
[1753904069982,5.7343,174.4,174.25,112.16]
[1753904069983,10.31499473,174.42,174.19,17.22]
[1753904070188,3.1,174.41,174.33,3.01]
[1753904070480,3.1,174.38,174.3,3.01]
[1753904070684,3.1,174.35,174.3,3.01]
[1753904070878,3.1,174.37,174.32,3.01]
[1753904071079,3.1,174.36,174.33,3.01]
[1753904072085,3.1,174.35,174.29,3.01]
[1753904072487,5.7374,174.3,174.29,3.01]
[1753904073091,3.1,174.29,174.22,3.01]
[1753904074692,3.1,174.29,174.22,8.75]
[1753904074991,3.1,174.29,174.23,3.01]
[1753904075789,5.7383,174.28,174.24,5.7393]
[1753904075986,3.1,174.32,174.23,3.01]
[1753904076892,5.7386,174.27,174.23,3.01]
[1753904077283,3.1,174.32,174.24,3.01]
[1753904077887,5.7374,174.3,174.25,3.01]
[1753904078090,3.1,174.35,174.26,3.01]
[1753904078292,3.1,174.35,174.28,3.01]
[1753904078697,3.1,174.39,174.29,3.01]
[1753904078896,3.1,174.39,174.3,3.01]
[1753904079091,5.736,174.35,174.3,3.01]
[1753904079996,5.736,174.35,174.3,5.7373]
[1753904080297,3.1,174.41,174.31,10.31499473]
[1753904080594,3.1,174.41,174.34,3.01]
[1753904081191,5.7345,174.39,174.34,3.01]
[1753904081494,3.1,174.41,174.35,3.01]
[1753904081689,5.7341,174.4,174.35,3.01]
[1753904081892,8.8341,174.4,174.37,3.01]
[1753904082288,3.1,174.43,174.32,3.01]
[1753904082483,3.1,174.4,174.32,3.01]
[1753904083291,5.7348,174.38,174.32,8.7464]
[1753904083500,3.1,174.4,174.33,3.01]
[1753904083885,5.735,174.38,174.33,5.7362]
[1753904084091,3.1,174.4,174.32,3.01]
[1753904084494,5.7346,174.39,174.34,3.01]
[1753904084698,3.1,174.4,174.32,3.01]
[1753904084895,5.7356,174.36,174.32,3.01]
[1753904085090,3.1,174.37,174.34,3.01]
[1753904085392,5.7352,174.37,174.32,3.01]
[1753904085584,3.1,174.41,174.33,3.01]
[1753904085990,3.1,174.43,174.37,3.01]
[1753904086489,5.7328,174.44,174.38,5.7346]
[1753904086697,5.7328,174.44,174.39,3.01]
[1753904086993,5.7326,174.45,174.39,5.7343]
[1753904087194,3.1,174.48,174.4,3.01]
[1753904087597,3.1,174.48,174.39,3.01]
[1753904088901,3.1,174.45,174.39,3.01]
[1753904089199,5.7336,174.42,174.38,3.01]
[1753904089397,3.1,174.45,174.38,3.01]
[1753904089697,6.13883663,174.44,174.25,6.35883168]
[1753904089894,3.1,174.41,174.35,3.01]
[1753904090291,5.7354,174.36,174.35,3.01]
[1753904090496,3.1,174.38,174.29,6.13883663]
[1753904090698,6.13883663,174.4,174.36,3.01]
[1753904090893,6.13883663,174.4,174.37,3.01]
[1753904090894,3.1,174.4,174.37,3.01]
[1753904091299,6.13883663,174.4,174.32,3.01]
[1753904091498,6.13883663,174.38,174.32,3.01]
[1753904091707,3.1,174.37,174.3,3.01]
[1753904092006,3.1,174.37,174.31,3.01]
[1753904092198,9.23883663,174.4,174.31,3.01]
[1753904092597,9.23883663,174.4,174.33,3.01]
[1753904092801,3.1,174.4,174.33,3.01]
[1753904093702,5.7357,174.35,174.33,3.01]
[1753904093995,3.1,174.36,174.33,3.01]
[1753904094196,10.26683864,174.41,174.34,3.01]
[1753904094396,10.26683864,174.41,174.28,10.26683864]
[1753904094397,3.1,174.4,174.28,10.26683864]
[1753904094702,3.1,174.4,174.29,3.01]
[1753904095001,3.1,174.4,174.33,3.01]
[1753904095795,10.26683864,174.41,174.33,3.01]
[1753904096293,3.1,174.42,174.33,3.01]
[1753904096503,5.7342,174.4,174.33,3.01]
[1753904097603,5.7344,174.39,174.33,8.7462]
[1753904097802,3.1,174.42,174.32,3.01]
[1753904098905,10.26683864,174.41,174.32,3.25]
[1753904099098,3.25,174.4,174.32,3.25]
[1753904099299,5.7349,174.38,174.32,8.9866]
[1753904099500,5.7349,174.38,174.33,3.25]
[1753904099702,3.25,174.4,174.33,3.25]
[1753904100006,3.25,174.4,174.33,8.9863]
[1753904100208,3.25,174.4,174.34,3.25]
[1753904100409,10.26683864,174.38,174.28,3.25]
[1753904100612,3.25,174.35,174.28,3.25]
[1753904100911,3.25,174.34,174.28,3.25]
[1753904101106,5.7377,174.29,174.28,3.25]
[1753904101315,3.25,174.29,174.26,3.25]
[1753904101605,8.9883,174.28,174.26,3.25]
[1753904101907,3.25,174.28,174.26,3.25]
[1753904102301,10.26683864,174.32,174.21,111.9]
[1753904102499,10.26683864,174.28,174.22,3.25]
[1753904102703,5.74,174.23,174.22,3.25]
[1753904103410,5.74,174.23,174.2,3.25]
[1753904103609,10.26683864,174.27,174.17,3.25]
[1753904103816,3.25,174.28,174.17,3.25]
[1753904104002,3.25,174.28,174.19,5.7408]
[1753904104208,3.25,174.23,174.17,3.25]
[1753904104410,3.25,174.2,174.14,3.25]
[1753904104716,3.25,174.18,174.12,3.25]
[1753904105303,3.25,174.18,174.13,3.25]
[1753904105613,10.26683864,174.18,174.11,3.25]
[1753904105810,3.25,174.14,174.04,3.25]
[1753904106312,3.25,174.14,174.06,3.25]
[1753904106813,3.25,174.11,174.02,3.25]
[1753904107018,5.7442,174.1,174.02,3.25]
[1753904107406,5.7442,174.1,174.04,5.7459]
[1753904107610,5.7442,174.1,174.05,3.25]
[1753904107811,3.25,174.11,174.02,3.25]
[1753904108013,3.25,174.08,174.02,3.25]
[1753904108208,5.7466,174.03,173.99,3.25]
[1753904108514,10.26683864,174.03,173.95,3.25]
[1753904108813,10.26683864,174.03,173.85,6.35883168]
[1753904108814,13.51683864,173.99,173.85,3.25]
[1753904109016,13.51683864,173.99,173.86,10.26683864]
[1753904109218,3.25,173.98,173.87,3.25]
[1753904109406,3.25,173.95,173.87,3.25]
[1753904110114,13.51683864,173.98,173.88,3.25]
[1753904110917,3.25,173.98,173.9,3.25]
[1753904111912,13.51683864,173.98,173.9,3.25]
[1753904112416,3.25,173.98,173.9,3.25]
[1753904112610,3.25,173.98,173.91,3.25]
[1753904112808,3.25,174.02,173.91,3.25]
[1753904113115,3.25,173.97,173.91,3.25]
[1753904113618,5.7487,173.96,173.91,3.25]
[1753904113920,3.25,173.97,173.91,3.25]
[1753904115211,3.25,173.97,173.89,3.25]
[1753904115416,5.7492,173.95,173.89,3.25]
[1753904115619,3.25,173.93,173.9,3.25]
[1753904116327,10.26683864,173.98,173.9,3.25]
[1753904116619,3.25,173.92,173.85,3.25]
[1753904120217,8.9992,173.95,173.87,3.25]
[1753904120418,3.25,173.95,173.87,3.25]
[1753904121516,3.25,173.95,173.88,3.25]
[1753904121724,3.25,173.98,173.89,3.25]
[1753904121918,3.25,174.0,173.93,3.25]
[1753904122118,3.25,174.05,173.94,10.26683864]
[1753904122318,3.25,173.98,173.95,3.25]
[1753904122516,3.25,173.97,173.95,3.25]
[1753904122711,3.25,173.99,173.95,3.25]
[1753904123223,3.25,173.97,173.95,3.25]
[1753904123415,3.25,173.97,173.92,3.25]
[1753904123610,3.25,173.96,173.93,3.25]
[1753904124011,8.9987,173.96,173.93,3.25]
[1753904124418,3.25,173.96,173.93,3.25]
[1753904124619,3.25,173.93,173.87,3.25]
[1753904124819,3.25,173.91,173.85,3.25]
[1753904125023,3.25,173.89,173.81,6.16987092]
[1753904125220,3.25,173.89,173.82,3.25]
[1753904125420,9.001,173.89,173.82,9.0029]
[1753904125618,3.25,173.91,173.83,3.25]
[1753904125920,3.25,173.91,173.84,3.25]
[1753904126424,3.25,173.91,173.84,9.0023]
[1753904126624,3.25,173.95,173.86,3.25]
[1753904127316,5.7499,173.92,173.86,3.25]
[1753904127514,3.25,173.93,173.86,3.25]
[1753904127716,5.7492,173.95,173.88,5.7512]
[1753904128020,3.25,173.99,173.89,3.25]
[1753904128418,3.25,173.99,173.92,3.25]
[1753904129028,5.7483,173.97,173.92,3.25]
[1753904129529,5.748,173.98,173.92,3.25]
[1753904129719,3.25,173.99,173.92,3.25]
[1753904130121,5.7473,174.0,173.92,8.9996]
[1753904130322,3.06,174.02,173.93,3.3]
[1753904130721,5.7477,173.99,173.93,3.3]
[1753904131025,3.06,174.02,173.93,3.3]
[1753904131626,3.06,174.02,173.93,19.36841091]
[1753904131827,3.06,174.02,173.94,3.3]
[1753904132030,5.7477,173.99,173.94,3.3]
[1753904132229,3.06,174.02,173.94,3.3]
[1753904132525,5.7474,174.0,173.94,3.3]
[1753904132724,3.06,174.05,173.97,3.3]
[1753904132920,3.06,174.1,174.0,3.3]
[1753904133524,3.06,174.12,174.0,3.3]
[1753904133729,5.7447,174.08,174.02,5.7465]
[1753904133933,3.06,174.1,174.0,3.3]
[1753904134625,8.805,174.07,174.01,3.3]
[1753904135827,5.7454,174.06,174.01,3.3]
[1753904136035,3.06,174.05,173.97,3.3]
[1753904136420,3.06,174.03,173.97,3.3]
[1753904137030,3.06,174.06,173.99,10.31911091]
[1753904137335,3.06,174.06,174.0,3.3]
[1753904138424,3.06,174.05,174.01,3.3]
[1753904138734,3.06,174.08,174.01,3.3]
[1753904139427,5.7466,174.03,174.01,3.3]
[1753904139633,8.8066,174.03,174.01,3.3]
[1753904140131,3.06,174.08,173.97,3.3]
[1753904140929,5.7468,174.02,173.97,3.3]
[1753904141632,5.7464,174.03,173.97,3.3]
[1753904142331,5.7464,174.03,173.97,5.7482]
[1753904142632,5.7466,174.02,173.97,3.3]
[1753904142932,3.06,174.05,173.97,3.3]
[1753904143534,5.7468,174.02,173.97,3.3]
[1753904143836,10.31911091,174.09,173.96,10.31911091]
[1753904144029,4.19596476,174.08,173.97,3.3]
[1753904144233,8.8063,174.04,173.97,3.3]
[1753904144534,3.06,174.04,173.97,3.3]
[1753904145528,3.06,174.02,173.97,3.3]
[1753904145833,3.06,173.99,173.97,3.3]
[1753904146031,3.06,173.99,173.92,3.3]
[1753904146430,8.8078,173.99,173.92,3.3]
[1753904146731,3.06,173.99,173.92,3.3]
[1753904146932,5.748,173.98,173.92,3.3]
[1753904147431,5.7486,173.96,173.91,386.38]
[1753904147634,3.06,173.96,173.93,3.3]
[1753904148330,3.06,173.96,173.91,386.38]
[1753904148331,3.06,173.98,173.95,3.3]
[1753904148532,4.2292811,173.97,173.96,3.3]
[1753904149834,4.64023345,174.05,173.99,5.7474]
[1753904150037,4.23628129,174.04,174.01,3.3]
[1753904150233,4.23628129,174.03,174.01,3.3]
[1753904150429,4.23628129,174.02,174.0,6.16948181]
[1753904150630,4.23628129,174.01,173.98,6.16948181]
[1753904150831,4.64023345,174.05,173.98,6.16948181]
[1753904151132,7.30025697,174.04,173.98,6.16948181]
[1753904151426,4.24025697,174.03,174.02,3.3]
[1753904151836,4.64023345,174.08,174.02,6.16948181]
[1753904152133,13.04835942,174.07,174.04,3.3]
[1753904152335,4.24315942,174.06,174.03,3.3]
[1753904152532,4.24315942,174.05,174.03,3.3]
[1753904152727,8.805,174.07,174.02,6.16948181]
[1753904153041,7.30548972,174.06,174.03,3.3]
[1753904153226,7.30548972,174.06,174.04,3.3]
[1753904153227,4.24548972,174.05,174.04,3.3]
[1753904154628,3.06,174.08,174.04,3.3]
[1753904154834,7.30419621,174.07,174.0,6.16948181]
[1753904155035,4.24419621,174.06,174.04,3.3]
[1753904155233,4.24419621,174.05,174.04,3.3]
[1753904155434,8.8053,174.07,174.04,3.3]
[1753904155737,4.24276466,174.06,174.04,3.3]
[1753904155940,5.7453,174.07,174.01,3.3]
[1753904156135,4.2434352,174.06,174.01,3.3]
[1753904156340,5.7453,174.06,174.01,3.3]
[1753904156640,3.06,174.09,174.03,3.3]
[1753904156936,4.24361869,174.08,174.03,3.3]
[1753904157140,6.16948181,174.11,174.03,3.3]
[1753904157439,3.06,174.09,174.03,3.3]
[1753904157641,6.16948181,174.11,174.03,3.3]
[1753904157846,4.22480469,174.1,174.03,3.3]
[1753904158136,3.06,174.08,174.03,3.3]
[1753904158944,3.06,174.08,174.03,3.08]
[1753904159147,3.26,174.06,173.99,3.08]
[1753904159335,3.26,174.06,173.96,111.72]
[1753904159336,3.26,174.1,174.01,3.08]
[1753904159535,3.26,174.1,173.96,111.72]
[1753904159536,3.26,174.1,174.03,3.08]
[1753904161546,5.7445,174.09,174.03,3.08]